bitfinex-derivatives/quotes_BTCF0:USTF0_20250528
["timestamp","ask_amount","ask_price","bid_price","bid_amount"]
[1748405525975,0.78495137,108780.0,108770.0,0.64917808]
[1748405527173,0.78495137,108780.0,108770.0,0.69290603]
[1748405527775,0.78495137,108780.0,108770.0,0.51990842]
[1748405527976,0.78495137,108780.0,108770.0,0.66290484]
[1748405528966,0.78495137,108780.0,108770.0,0.66074486]
[1748405529773,0.78495137,108780.0,108770.0,0.66290484]
[1748405530675,0.78495137,108780.0,108770.0,0.79558966]
[1748405532680,0.78491282,108780.0,108770.0,0.79559159]
[1748405533475,0.78491282,108780.0,108770.0,0.85169567]
[1748405533676,0.78491282,108780.0,108770.0,0.84953569]
[1748405533875,0.78491282,108780.0,108770.0,0.81743569]
[1748405534273,0.78491282,108780.0,108770.0,0.81959567]
[1748405535976,0.78491282,108780.0,108770.0,0.78949567]
[1748405536779,0.42411282,108780.0,108770.0,0.78949567]
[1748405537076,0.78491282,108780.0,108770.0,0.78949567]
[1748405537277,0.78491456,108780.0,108770.0,0.78950376]
[1748405538686,0.78491456,108780.0,108770.0,0.78734378]
[1748405538876,0.42411456,108780.0,108770.0,0.78734378]
[1748405539077,0.78491456,108780.0,108770.0,0.78950376]
[1748405539580,0.78491573,108780.0,108770.0,0.60070964]
[1748405539780,0.66337609,108780.0,108770.0,0.60070964]
[1748405539976,0.42411573,108780.0,108770.0,0.72224928]
[1748405540184,0.42411573,108780.0,108770.0,0.78314928]
[1748405541081,0.42311573,108780.0,108770.0,0.78314928]
[1748405541475,0.38378454,108780.0,108770.0,0.73941772]
[1748405541680,0.4221172,108780.0,108770.0,0.78314817]
[1748405542687,0.4221172,108780.0,108770.0,0.66160853]
[1748405543886,0.4221172,108780.0,108770.0,0.65944855]
[1748405544088,0.4221172,108780.0,108770.0,0.66160853]
[1748405545493,0.4221172,108780.0,108770.0,0.8504087]
[1748405545984,0.42212665,108780.0,108770.0,0.85042905]
[1748405546580,0.42212665,108780.0,108770.0,0.97196869]
[1748405547682,0.42212665,108780.0,108770.0,0.92118465]
[1748405547886,0.035,108780.0,108770.0,1.42472242]
[1748405548219,0.2187674,108780.0,108770.0,1.35680936]
[1748405548677,0.2187674,108780.0,108770.0,1.35464938]
[1748405549184,0.2187674,108780.0,108770.0,1.35680936]
[1748405549382,0.2187674,108780.0,108770.0,1.50811044]
[1748405549586,0.2187674,108780.0,108770.0,1.35834673]
[1748405549778,0.2167674,108780.0,108770.0,1.35834673]
[1748405550178,0.2157674,108780.0,108770.0,1.30756364]
[1748405550385,0.2157674,108780.0,108770.0,1.35831167]
[1748405550386,0.2147674,108780.0,108770.0,1.35831167]
[1748405550773,0.33630704,108780.0,108770.0,1.36031167]
[1748405551086,0.33630704,108780.0,108770.0,1.87827167]
[1748405551383,0.36710704,108780.0,108770.0,1.87827167]
[1748405553690,0.36710704,108780.0,108770.0,1.87611169]
[1748405554192,0.36710704,108780.0,108770.0,1.87827167]
[1748405554690,0.36710704,108780.0,108770.0,1.51742247]
[1748405554993,0.36710704,108780.0,108770.0,1.85263886]
[1748405555292,0.2455674,108780.0,108770.0,1.85263886]
[1748405558800,0.2455674,108780.0,108770.0,1.85047888]
[1748405559293,0.2455674,108780.0,108770.0,1.85263886]
[1748405560098,0.2455674,108780.0,108770.0,1.43231886]
[1748405560299,0.2455674,108780.0,108770.0,1.85259886]
[1748405560898,0.36710704,108780.0,108770.0,1.85259886]
[1748405562204,0.36710704,108780.0,108770.0,1.71998776]
[1748405563003,0.36710704,108780.0,108770.0,1.85259886]
[1748405563496,0.36710704,108780.0,108770.0,1.85257895]
[1748405563696,0.36710704,108780.0,108770.0,1.85041897]
[1748405564707,0.36710704,108780.0,108770.0,1.85257895]
[1748405565505,0.36710704,108780.0,108770.0,1.71997855]
[1748405567518,0.2455674,108780.0,108770.0,1.71997855]
[1748405567809,0.2455674,108780.0,108770.0,1.71998734]
[1748405569016,0.2455674,108780.0,108770.0,1.71782736]
[1748405569417,0.2455674,108780.0,108770.0,1.35918734]
[1748405569616,0.2455674,108780.0,108770.0,1.71998734]
[1748405572408,0.2455674,108780.0,108770.0,1.85261629]
[1748405572615,0.2455674,108780.0,108770.0,1.79646669]
[1748405573922,0.2455674,108780.0,108770.0,1.79430671]
[1748405574112,0.2455674,108780.0,108770.0,1.79646669]
[1748405574608,0.2455674,108780.0,108770.0,1.86660337]
[1748405575621,0.2455674,108780.0,108770.0,1.8781999]
[1748405577129,0.2455674,108780.0,108770.0,1.5173999]
[1748405577332,0.2455674,108780.0,108770.0,1.8781999]
[1748405577538,0.00013817,108790.0,108780.0,0.1837674]
[1748405577735,0.00013817,108790.0,108780.0,2.1888011]
[1748405578028,0.00013817,108790.0,108780.0,2.43779461]
[1748405578233,0.00013817,108790.0,108780.0,2.36765793]
[1748405578432,0.00013817,108790.0,108780.0,2.33307208]
[1748405578625,0.00013817,108790.0,108780.0,2.23487151]
[1748405578825,0.00113817,108790.0,108780.0,2.23487151]
[1748405579226,0.00113817,108790.0,108780.0,2.23703149]
[1748405580225,0.00113817,108790.0,108780.0,3.73703149]
[1748405580627,0.00113817,108790.0,108780.0,3.83060569]
[1748405580925,0.00113817,108790.0,108780.0,3.77281415]
[1748405581124,0.00113817,108790.0,108780.0,3.8305911]
[1748405582436,0.00113817,108790.0,108780.0,3.77281415]
[1748405582646,0.03293817,108790.0,108780.0,3.77281415]
[1748405582838,0.09503817,108790.0,108780.0,3.77281415]
[1748405583046,0.27878877,108790.0,108780.0,3.77281415]
[1748405583345,0.40032841,108790.0,108780.0,3.61843451]
[1748405583546,0.40032841,108790.0,108780.0,3.58823451]
[1748405583747,0.40032841,108790.0,108780.0,2.08607453]
[1748405583941,0.40032841,108790.0,108780.0,2.08619453]
[1748405584146,0.40032841,108790.0,108780.0,2.08835451]
[1748405585739,0.40032841,108790.0,108780.0,1.57063451]
[1748405585940,0.40032841,108790.0,108780.0,2.12041451]
[1748405586136,0.40032841,108790.0,108780.0,2.1248966]
[1748405586643,0.40032841,108790.0,108780.0,2.24643624]
[1748405587646,0.21657781,108790.0,108780.0,2.24643624]
[1748405587836,0.27878877,108790.0,108780.0,2.1248966]
[1748405588042,0.27878877,108790.0,108780.0,2.1564966]
[1748405588241,0.27878877,108790.0,108780.0,2.12069935]
[1748405588644,0.27878877,108790.0,108780.0,2.11841937]
[1748405589251,0.27878877,108790.0,108780.0,2.21408114]
[1748405589856,0.09503817,108790.0,108780.0,2.21393901]
[1748405590149,0.09503817,108790.0,108780.0,2.33547865]
[1748405590951,0.27878877,108790.0,108780.0,2.21393901]
[1748405591148,0.27878877,108790.0,108780.0,2.06271422]
[1748405591546,0.27878877,108790.0,108780.0,2.15621111]
[1748405592351,0.27878877,108790.0,108780.0,1.79541111]
[1748405592554,0.27878877,108790.0,108780.0,2.15621111]
[1748405593657,0.27878877,108790.0,108780.0,2.15405113]
[1748405594251,0.27878877,108790.0,108780.0,2.10335948]
[1748405594450,0.27878877,108790.0,108780.0,2.15406367]
[1748405594650,0.27878877,108790.0,108780.0,2.15622365]
[1748405595355,0.27878877,108790.0,108780.0,2.06272676]
[1748405595947,0.27878877,108790.0,108780.0,1.70192676]
[1748405596265,0.27878877,108790.0,108780.0,2.06272676]
[1748405597352,0.09503817,108790.0,108780.0,2.06272676]
[1748405597654,0.09503817,108790.0,108780.0,2.1842664]
[1748405598759,0.09503817,108790.0,108780.0,2.18239514]
[1748405599051,0.09503817,108790.0,108780.0,2.18455512]
[1748405599453,0.09503817,108790.0,108780.0,1.9056078]
[1748405599664,0.09503817,108790.0,108780.0,2.26641489]
[1748405600860,0.09403817,108790.0,108780.0,2.26741489]
[1748405601051,0.27878877,108790.0,108780.0,2.1727546]
[1748405601367,0.27878877,108790.0,108780.0,2.2674227]
[1748405601657,0.27778877,108790.0,108780.0,2.14588306]
[1748405602660,0.27778877,108790.0,108780.0,2.06403038]
[1748405602849,0.27778877,108790.0,108780.0,1.90665123]
[1748405603049,0.27778877,108790.0,108780.0,2.26745123]
[1748405603249,0.27778877,108790.0,108780.0,2.26747085]
[1748405603553,0.09403817,108790.0,108780.0,1.90667085]
[1748405603755,0.09403817,108790.0,108780.0,2.26531087]
[1748405604159,0.09403817,108790.0,108780.0,2.26747085]
[1748405605359,0.09403817,108790.0,108780.0,2.18558964]
[1748405607560,0.09403817,108790.0,108780.0,2.2282519]
[1748405607864,0.09403817,108790.0,108780.0,2.2791674]
[1748405608163,0.09403817,108790.0,108780.0,1.9183674]
[1748405608364,0.09403817,108790.0,108780.0,2.2791674]
[1748405608862,0.09403817,108790.0,108780.0,2.27700742]
[1748405609256,0.09403817,108790.0,108780.0,2.33498532]
[1748405609469,0.27778877,108790.0,108780.0,2.17122846]
[1748405609654,0.27778877,108790.0,108780.0,2.27158901]
[1748405611357,0.27778877,108790.0,108780.0,1.91078901]
[1748405611564,0.27778877,108790.0,108780.0,2.27158901]
[1748405611964,0.27778877,108790.0,108780.0,2.16269561]
[1748405612159,0.27778877,108790.0,108780.0,2.27158464]
[1748405612749,0.27778877,108790.0,108780.0,2.37643046]
[1748405613861,0.27778877,108790.0,108780.0,2.37427048]
[1748405614364,0.27778877,108790.0,108780.0,2.37643046]
[1748405616365,0.27778877,108790.0,108780.0,2.31845263]
[1748405616572,0.27778877,108790.0,108780.0,2.3764279]
[1748405618767,0.27778877,108790.0,108780.0,2.37426792]
[1748405619171,0.27778877,108790.0,108780.0,2.3764279]
[1748405620862,0.27778877,108790.0,108780.0,2.37642743]
[1748405622170,0.27778877,108790.0,108780.0,2.47065749]
[1748405622367,0.27778877,108790.0,108780.0,2.36581167]
[1748405622567,0.27778877,108790.0,108780.0,2.2676111]
[1748405623568,0.27778877,108790.0,108780.0,2.14607146]
[1748405623782,0.27778877,108790.0,108780.0,2.14391148]
[1748405624473,0.09403817,108790.0,108780.0,2.14391148]
[1748405624876,0.09403817,108790.0,108780.0,2.14607146]
[1748405625275,0.09403817,108790.0,108780.0,2.1460725]
[1748405626378,0.27778877,108790.0,108780.0,1.60441286]
[1748405626573,0.09403817,108790.0,108780.0,2.02433286]
[1748405626778,0.09403817,108790.0,108780.0,2.09495891]
[1748405628783,0.09403817,108790.0,108780.0,2.01301174]
[1748405629074,0.09403817,108790.0,108780.0,2.09495891]
[1748405629280,0.09403817,108790.0,108780.0,2.09279893]
[1748405629678,0.09403817,108790.0,108780.0,2.09495891]
[1748405630780,0.09403817,108790.0,108780.0,2.18546497]
[1748405631474,0.09403817,108790.0,108780.0,2.06392533]
[1748405633679,0.09403817,108790.0,108780.0,2.06176535]
[1748405634075,0.09403817,108790.0,108780.0,2.06392533]
[1748405634685,0.09403817,108790.0,108780.0,2.15757923]
[1748405636180,0.09403817,108790.0,108780.0,2.08732125]
[1748405636480,0.09403817,108790.0,108780.0,2.15758011]
[1748405636783,0.09403817,108790.0,108780.0,2.14984365]
[1748405638282,0.09403817,108790.0,108780.0,2.14984296]
[1748405638477,0.09403817,108790.0,108780.0,2.25468878]
[1748405638790,0.09403817,108790.0,108780.0,2.2525288]
[1748405639285,0.09403817,108790.0,108780.0,2.25468878]
[1748405639687,0.09403817,108790.0,108780.0,2.24407409]
[1748405639985,0.09403817,108790.0,108780.0,2.14587352]
[1748405641385,0.09403817,108790.0,108780.0,2.02433388]
[1748405641585,0.09403817,108790.0,108780.0,2.14587352]
[1748405642387,0.09403817,108790.0,108780.0,1.72595352]
[1748405642683,0.09403817,108790.0,108780.0,2.14578841]
[1748405643280,0.09403817,108790.0,108780.0,2.02424877]
[1748405643486,0.09403817,108790.0,108780.0,2.14578841]
[1748405643686,0.09403817,108790.0,108780.0,2.14362843]
[1748405644187,0.27778867,108790.0,108780.0,1.72378843]
[1748405644396,0.09403817,108790.0,108780.0,2.14358843]
[1748405644789,0.09403817,108790.0,108780.0,2.14574841]
[1748405644995,0.21557781,108790.0,108780.0,2.14574841]
[1748405645496,0.21557781,108790.0,108780.0,2.11414841]
[1748405646088,0.39932831,108790.0,108780.0,2.11414841]
[1748405646391,0.21557781,108790.0,108780.0,2.11414841]
[1748405647899,0.09403817,108790.0,108780.0,2.11414841]
[1748405648700,0.09403817,108790.0,108780.0,2.11198843]
[1748405649200,0.09403817,108790.0,108780.0,2.11414841]
[1748405649698,0.09403817,108790.0,108780.0,2.12585523]
[1748405649891,0.09403817,108790.0,108780.0,2.15379692]
[1748405651191,0.09403817,108790.0,108780.0,2.11811472]
[1748405651384,0.09403817,108790.0,108780.0,2.11766696]
[1748405651588,0.09403817,108790.0,108780.0,2.1176669]
[1748405652498,0.09403817,108790.0,108780.0,2.22251272]
[1748405653098,0.09403817,108790.0,108780.0,2.37515236]
[1748405653289,0.09403817,108790.0,108780.0,2.27030654]
[1748405653690,0.09403817,108790.0,108780.0,2.26814656]
[1748405653892,0.09403817,108790.0,108780.0,2.37350585]
[1748405654092,0.09403817,108790.0,108780.0,2.37566583]
[1748405655804,0.09403817,108790.0,108780.0,2.37566496]
[1748405656209,0.09403817,108790.0,108780.0,2.30615621]
[1748405656993,0.09403817,108790.0,108780.0,2.20795564]
[1748405658706,0.09403817,108790.0,108780.0,2.20579566]
[1748405659096,0.09403817,108790.0,108780.0,2.20795564]
[1748405659706,0.09403817,108790.0,108780.0,2.16423546]
[1748405659906,0.09403817,108790.0,108780.0,2.20795543]
[1748405660305,0.09403817,108790.0,108780.0,2.20795542]
[1748405661806,0.09403817,108790.0,108780.0,1.96487614]
[1748405662109,0.09403817,108790.0,108780.0,2.20795542]
[1748405662512,0.09403817,108790.0,108780.0,2.2782112]
[1748405662711,0.09403817,108790.0,108780.0,2.20795542]
[1748405663906,0.09403817,108790.0,108780.0,2.20579544]
[1748405664811,0.09403817,108790.0,108780.0,2.20795542]
[1748405667717,0.09403817,108790.0,108780.0,2.3600958]
[1748405667918,0.3608,108810.0,108800.0,0.1837331]
[1748405668211,0.40834376,108810.0,108800.0,0.90780573]
[1748405668512,0.40834376,108810.0,108800.0,0.85672368]
[1748405668513,0.37155584,108810.0,108800.0,0.85672368]
[1748405668711,0.37155584,108810.0,108800.0,0.67299058]
[1748405668915,0.37167584,108810.0,108800.0,0.85664384]
[1748405669115,0.37167584,108810.0,108800.0,0.93851043]
[1748405669308,0.37155584,108810.0,108800.0,0.93851043]
[1748405669714,0.37155584,108810.0,108800.0,0.94067041]
[1748405669903,0.37155584,108810.0,108800.0,0.95067824]
[1748405670213,0.37455584,108810.0,108800.0,0.95067824]
[1748405670516,0.37555584,108810.0,108800.0,0.95067824]
[1748405671016,0.40625584,108810.0,108800.0,0.8291386]
[1748405671215,0.40625584,108810.0,108800.0,0.95067824]
[1748405673216,0.40625584,108810.0,108800.0,0.95063163]
[1748405673608,0.40625584,108810.0,108800.0,0.86876504]
[1748405673909,0.40625584,108810.0,108800.0,0.93843548]
[1748405674312,0.40625584,108810.0,108800.0,0.94059546]
[1748405675323,0.40625584,108810.0,108800.0,0.94507755]
[1748405677721,0.40625584,108810.0,108800.0,0.94506937]
[1748405678622,0.40625584,108810.0,108800.0,0.94290939]
[1748405679224,0.40625584,108810.0,108800.0,0.94506937]
[1748405682127,0.40625584,108810.0,108800.0,0.9450652]
[1748405682827,0.40625584,108810.0,108800.0,0.81254059]
[1748405683713,0.40625584,108810.0,108800.0,0.81038061]
[1748405684130,0.40625584,108810.0,108800.0,0.81254059]
[1748405686440,0.40625584,108810.0,108800.0,0.81254312]
[1748405687042,0.40625584,108810.0,108800.0,0.89438137]
[1748405689247,0.40625584,108810.0,108800.0,0.94507475]
[1748405689840,0.40625584,108810.0,108800.0,0.89438137]
[1748405690343,0.40625584,108810.0,108800.0,0.81254312]
[1748405690344,0.44300226,108810.0,108800.0,0.81254312]
[1748405694046,0.44300226,108810.0,108800.0,0.84554312]
[1748405695146,0.40625584,108810.0,108800.0,0.84556123]
[1748405695448,0.44301284,108810.0,108800.0,0.84556123]
[1748405699447,0.40625584,108810.0,108800.0,0.84556123]
[1748405699648,0.44302341,108810.0,108800.0,0.8455751]
[1748405700148,0.40625584,108810.0,108800.0,0.8455751]
[1748405700343,0.40625584,108810.0,108800.0,0.92741335]
[1748405700740,0.40625584,108810.0,108800.0,0.9781407]
[1748405702343,0.40625584,108810.0,108800.0,0.92741335]
[1748405702542,0.40625584,108810.0,108800.0,0.97814107]
[1748405703650,0.40625584,108810.0,108800.0,1.00914107]
[1748405703850,0.2847162,108810.0,108800.0,1.13068193]
[1748405704651,0.2847162,108810.0,108800.0,1.00914229]
[1748405704846,0.40625584,108810.0,108800.0,0.95841449]
[1748405705047,0.2847162,108810.0,108800.0,1.00914225]
[1748405705442,0.2848362,108810.0,108800.0,1.00914225]
[1748405705745,0.2848362,108810.0,108800.0,1.08627957]
[1748405706150,0.1878362,108810.0,108800.0,1.08627957]
[1748405706351,0.004,108810.0,108800.0,1.35347275]
[1748405706657,0.00412,108810.0,108800.0,1.51729786]
[1748405707653,0.00212,108810.0,108800.0,1.42369189]
[1748405707951,0.00112,108810.0,108800.0,1.42369189]
[1748405708558,0.00112,108810.0,108800.0,1.42357988]
[1748405712358,0.03212,108810.0,108800.0,1.42357988]
[1748405712660,0.03212,108810.0,108800.0,1.50532618]
[1748405713160,0.03212,108810.0,108800.0,1.50532463]
[1748405713350,0.03212,108810.0,108800.0,1.42357988]
[1748405713662,0.03212,108810.0,108800.0,1.50531879]
[1748405714160,0.00112,108810.0,108800.0,1.50531879]
[1748405716358,0.00112,108810.0,108800.0,1.42357988]
[1748405716956,0.00112,108810.0,108800.0,1.50530572]
[1748405717157,0.06283817,108820.0,108810.0,0.1837163]
[1748405717461,0.06283817,108820.0,108810.0,1.43242432]
[1748405717656,0.06295817,108820.0,108810.0,1.79322432]
[1748405717861,0.06283817,108820.0,108810.0,1.79322432]
[1748405718663,0.06295817,108820.0,108810.0,1.79322432]
[1748405719768,0.06395817,108820.0,108810.0,1.79322432]
[1748405719972,0.06395817,108820.0,108810.0,1.88678994]
[1748405720676,0.06395817,108820.0,108810.0,1.79318397]
[1748405720878,0.06395817,108820.0,108810.0,1.79766606]
[1748405721480,0.06395817,108820.0,108810.0,1.89127203]
[1748405722175,0.09405817,108820.0,108810.0,1.89126343]
[1748405722676,0.09405817,108820.0,108810.0,1.79765746]
[1748405723674,0.09405817,108820.0,108810.0,1.43685746]
[1748405723871,0.09405817,108820.0,108810.0,1.79765746]
[1748405724479,0.09405817,108820.0,108810.0,1.86512573]
[1748405724777,0.09405817,108820.0,108810.0,1.73286575]
[1748405724987,0.03335817,108820.0,108810.0,1.73286575]
[1748405725199,0.00125817,108820.0,108810.0,1.49616307]
[1748405725494,0.00113817,108820.0,108810.0,1.82868165]
[1748405725693,0.00113817,108820.0,108810.0,3.32868165]
[1748405725891,0.00113817,108820.0,108810.0,3.24702878]
[1748405726089,0.00125817,108820.0,108810.0,3.24702878]
[1748405726290,0.00025817,108820.0,108810.0,3.24702878]
[1748405726594,0.00013817,108820.0,108810.0,3.24802878]
[1748405726895,0.00025817,108820.0,108810.0,3.24802878]
[1748405727884,0.00025817,108820.0,108810.0,3.20445717]
[1748405728091,0.00025817,108820.0,108810.0,3.24800324]
[1748405728895,0.00025817,108820.0,108810.0,3.36954288]
[1748405729091,0.0629,108830.0,108820.0,0.1836995]
[1748405729296,0.0629,108830.0,108820.0,1.33411022]
[1748405729703,0.06302,108830.0,108820.0,1.33411022]
[1748405730297,0.06402,108830.0,108820.0,1.33411022]
[1748405730586,0.06402,108830.0,108820.0,1.33410629]
[1748405731995,0.06402,108830.0,108820.0,1.85062629]
[1748405733595,0.06402,108830.0,108820.0,1.85061729]
[1748405733991,0.06402,108830.0,108820.0,1.48981729]
[1748405734189,0.09642,108830.0,108820.0,1.85061729]
[1748405734997,0.09642,108830.0,108820.0,1.85061926]
[1748405735388,0.09642,108830.0,108820.0,1.80529342]
[1748405735889,0.09642,108830.0,108820.0,1.67309425]
[1748405736091,0.09642,108830.0,108820.0,1.67757634]
[1748405739001,0.09642,108830.0,108820.0,1.5560367]
[1748405739304,0.09642,108830.0,108820.0,1.67757634]
[1748405739694,0.09642,108830.0,108820.0,1.64447634]
[1748405739898,0.09642,108830.0,108820.0,1.64448318]
[1748405745805,0.09642,108830.0,108820.0,1.76525657]
[1748405746104,0.09642,108830.0,108820.0,1.76530182]
[1748405747906,0.09642,108830.0,108820.0,1.88686367]
[1748405748100,0.09642,108830.0,108820.0,1.76532403]
[1748405748411,0.09642,108830.0,108820.0,1.85893]
[1748405749911,0.09642,108830.0,108820.0,1.91653781]
[1748405750097,0.09642,108830.0,108820.0,1.92829113]
[1748405750700,0.09642,108830.0,108820.0,1.82293184]
[1748405752107,0.09642,108830.0,108820.0,1.71473354]
[1748405752321,0.09642,108830.0,108820.0,1.82298851]
[1748405752806,0.09642,108830.0,108820.0,1.9283478]
[1748405753008,0.09642,108830.0,108820.0,2.02654837]
[1748405753815,0.09642,108830.0,108820.0,1.95632923]
[1748405754501,0.09642,108830.0,108820.0,2.18374812]
[1748405754702,0.09642,108830.0,108820.0,2.01198826]
[1748405756513,0.09642,108830.0,108820.0,2.01205387]
[1748405758709,0.09642,108830.0,108820.0,1.9186344]
[1748405758910,0.09642,108830.0,108820.0,1.82835437]
[1748405759114,0.09642,108830.0,108820.0,1.9186344]
[1748405759609,0.09642,108830.0,108820.0,2.01205387]
[1748405760420,0.09642,108830.0,108820.0,1.9186344]
[1748405760613,0.09642,108830.0,108820.0,1.82436997]
[1748405760928,0.09642,108830.0,108820.0,1.9186585]
[1748405762814,0.09642,108830.0,108820.0,1.67557922]
[1748405763118,0.09642,108830.0,108820.0,1.9186585]
[1748405763818,0.09642,108830.0,108820.0,2.01207797]
[1748405764612,0.09642,108830.0,108820.0,1.94198887]
[1748405765014,0.09642,108830.0,108820.0,1.94200443]
[1748405765421,0.09642,108830.0,108820.0,2.00054832]
[1748405768218,0.09642,108830.0,108820.0,1.91873478]
[1748405769522,0.09642,108830.0,108820.0,2.00054569]
[1748405771518,0.09642,108830.0,108820.0,1.91873478]
[1748405771719,0.09642,108830.0,108820.0,2.01215425]
[1748405772119,0.09642,108830.0,108820.0,1.65135425]
[1748405772320,0.09642,108830.0,108820.0,2.01215425]
[1748405776527,0.09642,108830.0,108820.0,1.65135425]
[1748405776730,0.09642,108830.0,108820.0,2.01215425]
[1748405777929,0.09642,108830.0,108820.0,2.01216313]
[1748405778233,0.09642,108830.0,108820.0,1.90629301]
[1748405778634,0.09642,108830.0,108820.0,2.00449358]
[1748405780131,0.09642,108830.0,108820.0,1.85248144]
[1748405780437,0.09642,108830.0,108820.0,1.94679439]
[1748405780639,0.09642,108830.0,108820.0,1.90315214]
[1748405780930,0.09642,108830.0,108820.0,1.85248144]
[1748405783035,0.09642,108830.0,108820.0,1.70489841]
[1748405785031,0.09642,108830.0,108820.0,1.58335877]
[1748405785637,0.09642,108830.0,108820.0,1.4851582]
[1748405786337,0.09642,108830.0,108820.0,1.5175582]
[1748405786637,0.09642,108830.0,108820.0,1.63909784]
[1748405787541,0.09642,108830.0,108820.0,1.70924808]
[1748405788644,0.09642,108830.0,108820.0,1.34844808]
[1748405788843,0.09642,108830.0,108820.0,1.70924808]
[1748405789037,0.09642,108830.0,108820.0,1.58770844]
[1748405789345,0.09642,108830.0,108820.0,1.77552808]
[1748405789942,0.09642,108830.0,108820.0,3.27552808]
[1748405790839,0.09642,108830.0,108820.0,3.23647784]
[1748405791046,0.09642,108830.0,108820.0,3.30663085]
[1748405791342,0.09642,108830.0,108820.0,3.42817049]
[1748405792346,0.09642,108830.0,108820.0,3.33385394]
[1748405792749,0.09642,108830.0,108820.0,3.2123143]
[1748405793848,0.09642,108830.0,108820.0,2.8515143]
[1748405794045,0.09642,108830.0,108820.0,3.2123143]
[1748405794246,0.09642,108830.0,108820.0,3.21312602]
[1748405794440,0.09642,108830.0,108820.0,3.30662911]
[1748405795047,0.09642,108830.0,108820.0,3.21312602]
[1748405795248,0.09642,108830.0,108820.0,3.16948291]
[1748405795453,0.09542,108830.0,108820.0,3.17048291]
[1748405798145,0.09542,108830.0,108820.0,3.263986]
[1748405798748,0.09542,108830.0,108820.0,2.903186]
[1748405798944,0.09542,108830.0,108820.0,3.263986]
[1748405799255,0.09542,108830.0,108820.0,3.17048291]
[1748405800237,0.09542,108830.0,108820.0,3.19351299]
[1748405801341,0.09542,108830.0,108820.0,3.16223244]
[1748405802754,0.09542,108830.0,108820.0,3.28377208]
[1748405802950,0.09542,108830.0,108820.0,3.16223244]
[1748405803454,0.09542,108830.0,108820.0,3.08838306]
[1748405804851,0.09542,108830.0,108820.0,3.17019193]
[1748405805055,0.09542,108830.0,108820.0,3.29173157]
[1748405805750,0.09542,108830.0,108820.0,3.2099227]
[1748405813648,0.09542,108830.0,108820.0,3.2406227]
[1748405814141,0.09542,108830.0,108820.0,3.17633079]
[1748405815153,0.09542,108830.0,108820.0,3.18081288]
[1748405816455,0.09542,108830.0,108820.0,1.75466168]
[1748405816456,0.06512,108830.0,108820.0,1.75466168]
[1748405816654,0.03272,108830.0,108820.0,2.03187498]
[1748405816856,0.0326,108830.0,108820.0,3.34019227]
[1748405817059,0.0326,108830.0,108820.0,3.45668763]
[1748405817256,0.03272,108830.0,108820.0,3.45220554]
[1748405817454,0.0326,108830.0,108820.0,3.45220554]
[1748405817650,0.03272,108830.0,108820.0,3.33571018]
[1748405817857,0.00012,108830.0,108820.0,3.27813614]
[1748405818246,0.00012,108830.0,108820.0,3.53892629]
[1748405818451,0.09593817,108840.0,108830.0,0.1836831]
[1748405818751,0.09593817,108840.0,108830.0,1.45758633]
[1748405819064,0.09593817,108840.0,108830.0,1.53932534]
[1748405819561,0.09593817,108840.0,108830.0,1.53931021]
[1748405820750,0.09693817,108840.0,108830.0,1.53931021]
[1748405821447,0.09693817,108840.0,108830.0,1.60827539]
[1748405821652,0.09693817,108840.0,108830.0,1.63626376]
[1748405821963,0.09693817,108840.0,108830.0,1.57907323]
[1748405822259,0.03213817,108840.0,108830.0,1.66075847]
[1748405822467,0.06325817,108840.0,108830.0,1.66075847]
[1748405822669,0.06325817,108840.0,108830.0,1.66070971]
[1748405822963,0.06313817,108840.0,108830.0,1.57902447]
[1748405823167,0.06325817,108840.0,108830.0,1.5089759]
[1748405823362,0.06325817,108840.0,108830.0,1.57901627]
[1748405823560,0.06325817,108840.0,108830.0,1.57901618]
[1748405823764,0.06325817,108840.0,108830.0,1.26816084]
[1748405824158,0.06325817,108840.0,108830.0,1.26916084]
[1748405824465,0.06225817,108840.0,108830.0,1.26916084]
[1748405825368,0.06225817,108840.0,108830.0,1.33918368]
[1748405825668,0.06225817,108840.0,108830.0,1.46069377]
[1748405825868,0.06225817,108840.0,108830.0,1.36732433]
[1748405826057,0.06225817,108840.0,108830.0,1.26916084]
[1748405826464,0.06225817,108840.0,108830.0,1.62996084]
[1748405826970,0.06225817,108840.0,108830.0,1.6299459]
[1748405827962,0.06225817,108840.0,108830.0,1.38686662]
[1748405828163,0.06225817,108840.0,108830.0,1.6299459]
[1748405828370,0.06225817,108840.0,108830.0,1.69995208]
[1748405829171,0.06225817,108840.0,108830.0,0.85681244]
[1748405829373,0.06674026,108840.0,108830.0,1.57841244]
[1748405830462,0.06225817,108840.0,108830.0,1.57841244]
[1748405831273,0.06225817,108840.0,108830.0,1.57840093]
[1748405831571,0.06674026,108840.0,108830.0,1.57840093]
[1748405831873,0.06674026,108840.0,108830.0,1.60176419]
[1748405832073,0.06674026,108840.0,108830.0,1.72330383]
[1748405832374,0.06225817,108840.0,108830.0,1.72330383]
[1748405833174,0.06225817,108840.0,108830.0,1.60176419]
[1748405834772,0.06225817,108840.0,108830.0,0.88016419]
[1748405834969,0.06225817,108840.0,108830.0,1.60176419]
[1748405835980,0.06225817,108840.0,108830.0,1.69992768]
[1748405837478,0.06674026,108840.0,108830.0,1.69992768]
[1748405837971,0.06674026,108840.0,108830.0,1.60985247]
[1748405839482,0.03574026,108840.0,108830.0,1.73139211]
[1748405839669,0.03574026,108840.0,108830.0,1.6497425]
[1748405840172,0.06774026,108840.0,108830.0,1.6497425]
[1748405840673,0.06325817,108840.0,108830.0,1.6497425]
[1748405840978,0.06325817,108840.0,108830.0,3.1497425]
[1748405844776,0.06325817,108840.0,108830.0,3.16138663]
[1748405848182,0.06325817,108840.0,108830.0,3.25955012]
[1748405849083,0.06325817,108840.0,108830.0,3.01647084]
[1748405849376,0.06325817,108840.0,108830.0,3.25955012]
[1748405849579,0.06325817,108840.0,108830.0,3.32149532]
[1748405849882,0.06325817,108840.0,108830.0,3.22812588]
[1748405851177,0.06325817,108840.0,108830.0,3.32157816]
[1748405851387,0.06325817,108840.0,108830.0,1.4205466]
[1748405851585,0.36846411,108840.0,108830.0,0.90485435]
[1748405851767,0.4038462,108840.0,108830.0,1.22537086]
[1748405851968,0.4038462,108840.0,108830.0,1.22549086]
[1748405852273,0.2201799,108840.0,108830.0,1.28161074]
[1748405852478,0.4038462,108840.0,108830.0,0.86293074]
[1748405852681,0.39936411,108840.0,108830.0,1.28609283]
[1748405852883,0.39936411,108840.0,108830.0,1.28597283]
[1748405853086,0.21569781,108840.0,108830.0,1.28609283]
[1748405853286,0.21569781,108840.0,108830.0,1.21597945]
[1748405853779,0.21569781,108840.0,108830.0,1.21149736]
[1748405854178,0.21569781,108840.0,108830.0,1.21145736]
[1748405854383,0.21569781,108840.0,108830.0,1.21133736]
[1748405854572,0.21569781,108840.0,108830.0,1.21145736]
[1748405855681,0.39936411,108840.0,108830.0,1.21145736]
[1748405855883,0.39936411,108840.0,108830.0,0.69593736]
[1748405856082,0.39936411,108840.0,108830.0,1.21149736]